bitfinex/quotes_ETHUSD_20251111
["timestamp","ask_amount","ask_price","bid_price","bid_amount"]
[1762882596816,0.1811,3461.3,3460.6,0.5]
[1762882596934,0.454,3461.8,3460.1,4.01973859]
[1762882597117,0.1811,3461.6,3460.6,2.88966451]
[1762882597323,2.88892098,3461.5,3460.9,0.5]
[1762882597535,2.88892098,3461.5,3460.7,0.775]
[1762882597756,0.6668,3461.6,3460.4,0.5]
[1762882597920,2.88933888,3461.0,3460.4,0.5]
[1762882598460,0.776,3461.4,3460.2,0.5]
[1762882598660,2.89000635,3460.2,3460.0,100.0]
[1762882598864,2.89017341,3460.0,3456.7,0.75412506]
[1762882599169,0.1906,3460.3,3459.3,0.5]
[1762882599344,2.89017843,3460.0,3458.9,3.39108997]
[1762882599559,0.1906,3460.3,3459.2,0.5]
[1762882599752,2.89031149,3459.9,3458.8,1.2591]
[1762882599939,3.08059838,3460.3,3459.4,0.5]
[1762882600134,0.26375982,3460.2,3459.4,0.5]
[1762882600383,0.26375982,3460.2,3459.0,0.5]
[1762882600384,0.26354001,3460.1,3459.0,0.5]
[1762882600582,0.781,3460.5,3459.6,2.89045288]
[1762882600782,0.26356229,3460.4,3459.9,2.89024677]
[1762882600969,1.6194408,3461.1,3459.8,0.6857]
[1762882601170,1.6194408,3461.1,3459.9,0.64667]
[1762882601171,1.0445934,3461.0,3459.9,0.64667]
[1762882601408,0.2635934,3460.9,3460.0,0.52890173]
[1762882601682,0.781,3461.5,3460.6,0.5]
[1762882601859,0.263508,3461.4,3460.6,0.5]
[1762882602180,0.263508,3461.3,3460.6,0.5]
[1762882602383,2.88897394,3461.5,3460.6,3.3896578]
[1762882602544,0.26351355,3461.4,3460.6,0.5]
[1762882602744,0.26351355,3461.3,3460.6,0.5]
[1762882603148,0.26351355,3461.2,3460.6,0.5]
[1762882603348,2.88932072,3461.1,3460.6,0.5]
[1762882603799,0.78,3461.2,3460.3,0.781]
[1762882604001,0.1906,3460.4,3459.6,0.1857]
[1762882604149,0.1906,3460.4,3459.1,0.65621]
[1762882604150,0.1906,3460.4,3459.4,0.5]
[1762882604463,0.26319533,3460.3,3459.6,0.5]
[1762882604663,0.78,3460.9,3460.0,2.89011591]
[1762882604865,1.1337408,3461.4,3460.2,0.5]
[1762882605080,2.88929173,3461.1,3460.2,3.38995114]
[1762882605264,0.26321937,3461.0,3460.3,2.88989584]
[1762882605448,2.88919545,3461.2,3460.5,0.5]
[1762882605646,0.26323849,3461.1,3460.5,0.5]
[1762882605851,0.26323849,3461.0,3460.5,3.38972001]
[1762882606048,1.6194408,3461.4,3460.5,3.38972001]
[1762882606049,2.3984408,3461.4,3460.5,0.5]
[1762882606253,0.26324646,3461.3,3460.2,0.779]
[1762882606456,0.26324646,3461.2,3460.6,2.88966084]
[1762882606686,2.88856194,3462.0,3461.3,0.5]
[1762882606908,3.06927872,3462.4,3461.6,3.38883232]
[1762882607056,0.26331655,3462.3,3461.6,0.5]
[1762882607260,0.26331655,3462.3,3461.6,3.38883168]
[1762882607603,0.26331655,3462.3,3462.0,0.5]
[1762882607756,0.9337,3463.0,3461.6,0.4801]
[1762882607955,3.15113336,3462.9,3462.1,0.5]
[1762882608180,1.39710253,3462.8,3462.1,3.57411467]
[1762882608510,2.88721837,3463.6,3462.1,3.57411467]
[1762882608511,0.26336173,3462.7,3462.1,0.1857]
[1762882608807,1.1337408,3463.2,3462.5,0.5]
[1762882608973,0.26339654,3463.1,3462.5,0.5]
[1762882609176,0.4857,3464.6,3462.6,1.2581]
[1762882609390,0.1906,3464.3,3462.6,1.2581]
[1762882609589,0.1906,3464.3,3462.3,0.1857]
[1762882609590,0.4877,3463.8,3462.4,0.4801]
[1762882609794,0.002,3462.8,3462.7,0.779]
[1762882610021,0.002,3462.8,3462.5,0.779]
[1762882610191,0.002,3462.8,3462.7,0.5]
[1762882610592,0.002,3462.8,3462.3,0.5]
[1762882610788,0.002,3462.8,3462.1,1.4637]
[1762882611111,0.002,3462.8,3462.4,0.5]
[1762882611315,0.002,3462.8,3462.2,0.5]
[1762882611516,0.002,3462.8,3462.1,0.778]
[1762882611720,0.002,3462.8,3462.2,2.88827614]
[1762882611878,0.002,3462.8,3462.4,0.5]
[1762882612080,0.002,3462.8,3462.4,3.38816956]
[1762882612285,0.002,3462.8,3462.5,0.4801]
[1762882612527,0.002,3462.8,3462.7,3.38791983]
[1762882612686,0.002,3462.8,3462.7,4.14133048]
[1762882613011,0.002,3462.8,3462.7,0.5]
[1762882613187,0.002,3462.8,3462.6,0.778]
[1762882613394,0.002,3462.8,3462.6,1.278]
[1762882613889,0.002,3462.8,3462.6,4.16599432]
[1762882614093,0.002,3462.8,3462.7,2.88791983]
[1762882614299,0.002,3462.8,3462.7,3.38791983]
[1762882614807,0.002,3462.8,3462.7,0.5]
[1762882615402,0.002,3462.8,3462.6,0.778]
[1762882615609,0.002,3462.8,3462.7,0.776]
[1762882617221,0.002,3462.8,3462.7,3.66391983]
[1762882617526,0.002,3462.8,3462.7,4.61741983]
[1762882617734,0.002,3462.8,3462.7,1.7295]
[1762882617886,0.002,3462.8,3462.7,1.276]
[1762882618092,0.002,3462.8,3462.7,0.776]
[1762882619137,0.002,3462.8,3462.7,4.61941983]
[1762882619334,0.002,3462.8,3462.7,5.37016333]
[1762882619685,0.002,3462.8,3462.7,5.39904252]
[1762882619887,0.002,3462.8,3462.7,5.37016333]
[1762882620115,0.002,3463.8,3463.7,2.88708606]
[1762882620331,0.002,3463.8,3463.7,0.773]
[1762882621426,0.002,3463.8,3463.7,1.273]
[1762882622926,0.002,3463.8,3463.7,4.16008606]
[1762882623179,0.002,3463.8,3463.7,5.05022467]
[1762882623462,0.002,3463.8,3463.7,0.5]
[1762882623616,0.002,3463.8,3463.4,1.272]
[1762882624021,0.002,3463.8,3463.4,0.772]
[1762882624224,0.002,3463.8,3463.6,0.5]
[1762882624669,0.002,3463.8,3463.5,0.5]
[1762882624959,0.002,3463.8,3463.7,0.5]
[1762882625128,0.002,3463.8,3463.7,3.38708606]
[1762882625326,0.002,3463.8,3463.4,1.272]
[1762882625728,0.002,3463.8,3463.6,0.5]
[1762882626059,0.002,3463.8,3463.5,2.88725277]
[1762882626060,0.002,3463.8,3463.7,0.5]
[1762882626261,0.002,3463.8,3463.4,0.772]
[1762882626439,0.002,3463.8,3463.6,0.5]
[1762882626987,0.002,3463.8,3463.4,0.772]
[1762882627196,0.002,3463.8,3463.4,1.272]
[1762882627486,0.4536,3463.8,3463.1,3.65652674]
[1762882627688,2.88708981,3463.7,3463.1,1.269]
[1762882627888,0.4098,3463.2,3462.5,2.88801938]
[1762882628249,3.2973108,3463.2,3462.4,2.88811616]
[1762882628362,2.88780236,3462.9,3462.3,1.269]
[1762882628697,2.88763682,3463.1,3462.3,3.6571903]
[1762882628867,0.769,3463.3,3462.3,1.269]
[1762882629194,0.769,3463.3,3461.5,3.3444078]
[1762882629195,0.4516,3463.0,3461.5,3.3444078]
[1762882629492,0.1578,3462.4,3461.5,1.268]
[1762882629794,0.1578,3462.4,3461.8,0.5]
[1762882629968,0.1578,3462.4,3461.6,0.5]
[1762882630174,0.1578,3462.4,3461.7,0.5]
[1762882630482,0.768,3462.7,3462.0,3.38845205]
[1762882630680,0.768,3462.7,3462.0,3.3884365]
[1762882630890,0.182,3462.9,3462.3,0.5]
[1762882631103,0.182,3462.9,3461.9,0.768]
[1762882631304,0.26375544,3462.8,3462.0,0.5]
[1762882631510,0.6336,3462.9,3462.0,2.88846598]
[1762882631806,2.8882334,3462.4,3461.6,0.5]
[1762882631963,1.1337408,3462.7,3461.4,1.267]
[1762882632168,2.88830486,3462.3,3461.5,0.5]
[1762882632363,2.8884099,3462.2,3461.5,0.5]
[1762882632606,2.88817005,3462.4,3461.5,3.38891712]
[1762882632903,2.88830934,3462.3,3461.6,0.5]
[1762882633103,1.2186,3462.5,3461.6,2.88875478]
[1762882633271,0.26396363,3462.4,3461.7,0.5]
[1762882633472,0.26396363,3462.4,3461.8,0.5]
[1762882634389,3.15213979,3462.4,3461.8,0.5]
[1762882634587,3.15228371,3462.3,3461.6,0.5]
[1762882634789,2.88832008,3462.3,3461.6,0.5]
[1762882635008,0.26419199,3462.2,3461.4,1.267]
[1762882635302,3.15266749,3462.1,3461.4,4.15598348]
[1762882635503,2.88817005,3462.4,3461.5,2.88892098]
[1762882635811,0.26442344,3462.3,3462.0,0.5]
[1762882635969,0.26442344,3462.3,3460.7,0.1857]
[1762882635970,3.53016468,3461.6,3460.7,0.1857]
[1762882636171,3.53016468,3461.6,3461.0,0.5]
[1762882636172,0.6413,3461.6,3461.0,0.5]
[1762882636379,0.26451307,3461.5,3461.0,3.38929934]
[1762882636704,0.26451307,3461.5,3461.1,3.38924205]
[1762882637012,0.26450066,3461.4,3461.0,0.5]
[1762882637217,2.88900347,3461.5,3460.8,0.5]
[1762882637520,0.182,3461.6,3460.9,2.88940169]
[1762882637717,0.26444466,3461.5,3461.1,0.5]
[1762882638023,0.26444466,3461.5,3460.9,0.5]
[1762882638167,0.26444466,3461.5,3461.0,2.88928039]
[1762882638396,0.4807,3461.0,3460.7,0.764]
[1762882638633,2.88978076,3460.5,3459.8,0.4555]
[1762882638936,0.38281415,3460.7,3459.9,0.9503]
[1762882639232,0.4593,3460.3,3459.5,0.001]
[1762882639394,2.89050757,3459.6,3459.5,0.001]
[1762882639728,5.23452142,3459.6,3459.5,0.001]
[1762882639928,5.68612142,3459.6,3459.5,0.001]
[1762882640435,12.33014496,3459.6,3459.5,0.001]
[1762882641009,1.5392448,3459.5,3457.6,0.07597448]
[1762882641211,0.26427305,3459.4,3458.0,0.5]
[1762882641409,2.89100041,3459.1,3458.0,3.39178056]
[1762882641610,0.4516,3459.4,3458.1,0.6418]
[1762882641832,1.5853408,3459.4,3458.4,0.5]
[1762882642005,0.764,3459.3,3458.4,0.5]
[1762882642206,0.764,3459.3,3458.3,2.89157472]
[1762882642423,1.3157408,3459.6,3458.1,0.6418]
[1762882642424,0.182,3459.6,3458.7,0.5]
[1762882642606,0.182,3459.9,3459.0,0.5]
[1762882642818,0.182,3459.9,3459.1,0.5]
[1762882643020,2.890531,3459.6,3458.8,0.5]
[1762882643237,0.182,3459.9,3459.2,0.5]
[1762882643396,0.4516,3459.8,3458.5,0.5]
[1762882643603,0.182,3459.9,3458.3,0.4555]
[1762882643797,0.764,3459.8,3458.8,0.5]
[1762882644002,0.764,3459.8,3458.8,0.33912618]
[1762882644204,0.182,3459.9,3458.1,0.1863]
[1762882644497,0.4516,3459.8,3458.9,0.5]
[1762882644735,1.2156,3459.8,3458.9,0.5]
[1762882645032,1.2156,3459.8,3458.7,2.89125926]
[1762882645244,1.2156,3459.8,3458.3,0.4555]
[1762882645740,1.2156,3459.8,3458.4,0.5]
[1762882645741,2.89050757,3459.6,3458.4,0.5]
[1762882645902,1.5931408,3459.7,3458.1,0.1863]
[1762882646098,0.4594,3459.6,3458.3,0.4527]
[1762882646312,0.4594,3459.6,3458.6,2.89129368]
[1762882646525,0.763,3459.5,3458.5,0.5]
[1762882646725,0.4594,3459.4,3458.2,0.5]
[1762882646929,2.89106196,3459.0,3458.2,0.5]
[1762882647112,0.4594,3459.4,3458.1,0.1863]
[1762882647312,0.9558,3459.3,3458.5,2.89142691]
[1762882647518,0.762,3459.2,3458.4,0.5]
[1762882647808,0.762,3459.3,3458.7,0.5]
[1762882648048,1.2214,3459.3,3458.1,0.1873]
[1762882648354,0.4594,3459.3,3458.2,0.4527]
[1762882648702,2.89101064,3459.0,3458.3,0.5]
[1762882648903,2.89115478,3458.9,3458.3,0.5]
[1762882649122,2.89115171,3458.9,3458.3,0.5]
[1762882649337,0.4972,3458.4,3458.1,0.001]
[1762882649930,0.76,3458.6,3458.1,0.501]
[1762882650109,0.76,3458.6,3458.1,0.001]
[1762882650305,6.23851954,3458.8,3458.1,0.001]
[1762882650647,6.23851954,3459.3,3458.1,0.1809]
[1762882650856,1.1337408,3459.2,3458.3,0.5]
[1762882651003,1.1337408,3459.2,3458.5,0.5]
[1762882651353,1.1337408,3459.2,3458.1,0.1809]
[1762882651354,2.89092538,3459.1,3458.1,0.1809]
[1762882651652,0.759,3459.2,3458.4,0.5]
[1762882652000,1.1337408,3459.1,3458.4,0.5]
[1762882652205,0.4594,3459.3,3458.6,0.5]
[1762882652455,0.002,3459.7,3458.6,0.02891343]
[1762882652619,0.002,3459.7,3458.5,0.759]
[1762882652620,0.002,3459.7,3459.6,0.9794]
[1762882653143,0.002,3459.7,3459.5,0.5]
[1762882653385,0.002,3459.7,3459.6,3.86990757]
[1762882653571,0.002,3459.7,3459.6,3.89881264]
[1762882653881,0.002,3459.7,3459.6,4.32260757]
[1762882654081,0.002,3459.7,3459.6,1.4321]
[1762882654388,0.4052,3459.7,3459.6,0.5]
[1762882654585,0.002,3459.7,3459.6,0.4794]
[1762882654749,0.002,3459.7,3459.1,0.1863]
[1762882654949,0.002,3459.7,3459.4,0.5]
[1762882655256,0.002,3459.7,3459.1,0.1863]
[1762882655446,6.67614661,3459.5,3458.3,0.761]
[1762882655874,1.8947408,3459.4,3458.5,0.5]
[1762882656083,2.89075824,3459.3,3458.4,0.5]
[1762882656248,0.26160309,3459.2,3458.4,0.5]
[1762882656450,6.93798543,3459.1,3458.1,0.6746]
[1762882656687,6.67614661,3459.1,3458.1,0.6746]
[1762882656887,2.89110209,3458.9,3458.2,0.5]
[1762882657113,2.89094761,3459.1,3458.4,0.5]
[1762882657319,2.89101085,3459.0,3458.4,0.5]
[1762882657503,0.761,3459.1,3458.4,0.5]
[1762882657699,0.4594,3459.8,3458.7,0.5]
[1762882657897,1.1337408,3459.4,3459.0,0.5]
[1762882658106,1.1337408,3459.5,3459.0,0.5]
[1762882658303,0.002,3459.7,3459.1,0.22160925]
[1762882658619,0.002,3459.7,3459.6,0.5]
[1762882658906,0.002,3459.7,3459.1,0.6927]
[1762882659275,0.002,3459.7,3459.2,0.5]
[1762882659479,0.002,3459.7,3458.8,0.5]
[1762882659710,2.89068189,3459.4,3458.8,0.5]
[1762882659889,0.002,3459.7,3458.6,3.65233863]
[1762882660085,0.26438151,3459.7,3458.7,0.4527]
[1762882660413,0.26438151,3459.7,3459.2,0.5]
[1762882660710,0.26438151,3459.7,3459.3,0.5]
[1762882661111,0.26238151,3459.6,3459.2,0.6927]
[1762882661312,0.26238151,3459.5,3459.2,0.5]
[1762882661478,0.26238151,3459.4,3458.6,0.761]
[1762882661678,1.02274986,3459.3,3458.4,0.5]
[1762882661913,1.02374986,3459.2,3458.3,0.5]
[1762882662218,0.26274986,3459.1,3458.4,0.0289151]
[1762882662382,0.26274986,3459.0,3458.7,0.5]
[1762882662588,2.89074081,3459.4,3458.7,0.5]
[1762882662887,0.26286142,3459.3,3458.7,0.5]
[1762882663088,0.26286142,3459.2,3458.8,0.5]
[1762882663300,0.26286142,3459.2,3458.2,0.761]
[1762882663301,2.89105825,3459.0,3458.5,0.5]
[1762882663494,0.26286142,3458.9,3458.5,0.5]
[1762882663683,0.26286142,3458.8,3458.1,0.6746]
[1762882663880,6.67614661,3459.3,3458.1,0.6746]
[1762882663881,3.15417519,3458.7,3458.1,0.6746]
[1762882664104,0.26286142,3458.6,3458.1,0.6746]
[1762882664303,0.26286142,3458.5,3458.1,0.6746]
[1762882664509,2.89127014,3458.7,3458.1,0.6746]
[1762882664720,0.26325451,3458.6,3458.2,0.5]
[1762882665016,0.26325451,3458.5,3458.2,0.5]
[1762882665215,0.26328168,3458.4,3458.2,0.5]
[1762882665385,0.26354398,3458.3,3458.1,3.06633972]
[1762882665585,2.89134126,3458.7,3458.1,0.6746]
[1762882665780,2.89167775,3458.2,3458.1,0.501]
[1762882666014,0.26354967,3458.2,3458.1,0.6273]
[1762882666218,2.89077671,3459.3,3458.4,0.5]
[1762882666424,0.26380487,3459.2,3458.8,0.5]
[1762882666724,0.26380487,3459.1,3459.0,3.39100896]
[1762882666880,0.26380487,3459.1,3459.0,0.5]
[1762882667086,0.26380487,3459.1,3459.0,4.49427896]
[1762882668002,0.002,3459.5,3459.4,3.39067468]
[1762882668204,0.26640028,3459.5,3459.4,5.08177468]
[1762882669388,0.26640028,3459.5,3459.4,4.14967468]
[1762882669682,0.26640028,3459.5,3459.4,5.08177468]
[1762882669937,0.26640028,3459.5,3459.4,6.1873762]
[1762882672216,0.26640028,3459.5,3459.4,5.7346762]
[1762882672803,0.26640028,3459.5,3459.4,6.1873762]
[1762882673219,0.002,3459.5,3459.4,6.1873762]
[1762882674650,0.002,3459.5,3459.4,4.9756762]
[1762882674825,0.002,3459.5,3459.4,3.87007468]
[1762882675031,0.002,3459.5,3459.4,4.62407468]
[1762882675798,0.002,3459.5,3459.4,5.07977468]
[1762882676606,0.002,3459.5,3459.4,4.62407468]
[1762882676929,0.002,3459.5,3459.4,5.07977468]
[1762882677104,0.002,3459.5,3459.4,5.89609876]
[1762882677702,0.002,3459.5,3459.4,6.30160276]
[1762882677921,0.002,3460.1,3460.0,2.89017341]
[1762882678104,0.002,3460.1,3460.0,4.61267341]
[1762882678300,0.002,3460.1,3460.0,5.47387741]
[1762882678504,0.002,3460.1,3460.0,6.59933427]
[1762882679602,0.002,3460.1,3460.0,6.19383027]
[1762882679799,0.002,3460.1,3460.0,5.09597341]
[1762882682308,0.002,3460.1,3460.0,4.34397341]
[1762882682512,0.002,3460.1,3460.0,5.09497341]
[1762882684357,0.002,3460.1,3460.0,0.5]
[1762882684574,0.002,3460.1,3460.0,4.14117341]
[1762882684768,0.002,3460.1,3460.0,4.62067341]
[1762882685268,0.002,3460.1,3460.0,4.14117341]
[1762882685610,0.002,3460.1,3460.0,1.251]
[1762882685842,0.002,3460.1,3460.0,1.2295]
[1762882686044,0.002,3460.1,3460.0,5.10397341]
[1762882686353,0.002,3460.1,3460.0,5.90338995]
[1762882686856,0.002,3460.1,3459.4,0.001]
[1762882686857,2.89059112,3459.5,3459.4,0.001]
[1762882687052,4.02466618,3459.1,3459.0,0.001]
[1762882687272,2.26618756,3459.1,3459.0,0.001]
[1762882687440,4.89376618,3459.1,3459.0,0.001]
[1762882687782,0.3996,3459.1,3459.0,0.001]
[1762882688102,0.4695,3459.5,3459.0,0.001]
[1762882688412,0.1827,3459.9,3459.3,0.5]
[1762882688528,0.1827,3459.9,3459.0,0.001]
[1762882688529,0.4025,3459.4,3459.2,0.5]
[1762882688729,0.4688,3459.8,3459.2,0.5]
[1762882689150,2.890496,3459.7,3459.2,0.5]
[1762882689351,0.4688,3459.8,3459.2,0.5]
[1762882689685,0.1827,3459.9,3459.2,2.89083006]
[1762882689848,0.1827,3459.9,3459.5,0.5]
[1762882690177,0.1827,3459.9,3459.3,2.89075086]
[1762882690384,0.002,3460.1,3459.9,0.5]
[1762882690533,2.89027792,3459.9,3459.5,0.5]
[1762882690864,0.6522,3459.8,3459.5,0.5]
[1762882691374,0.4025,3459.6,3459.0,0.001]
[1762882691528,0.0047,3459.4,3459.0,0.001]
[1762882691946,2.89075824,3459.3,3459.0,0.001]
[1762882692148,3.36488067,3459.4,3459.0,0.501]
[1762882692334,0.4695,3459.3,3459.0,0.501]
[1762882692530,0.1827,3459.8,3459.3,0.5]
[1762882692966,0.6522,3459.8,3459.3,3.39075783]
[1762882693138,0.6522,3459.8,3459.0,2.89193586]
[1762882693139,0.4682,3459.4,3459.0,0.001]
[1762882693551,0.004,3459.1,3459.0,0.001]
[1762882693845,0.6522,3459.8,3459.0,0.501]
[1762882694057,2.89042402,3459.7,3459.0,3.39200873]
[1762882694368,2.89061849,3459.5,3459.0,0.501]
[1762882694682,0.1827,3459.8,3459.3,0.5]
[1762882694877,2.89060527,3459.5,3459.3,0.5]
[1762882695579,2.89058898,3459.6,3459.3,0.5]
[1762882695743,0.4695,3459.6,3459.3,0.5]
[1762882696345,0.4695,3459.6,3459.0,2.89198076]
[1762882696346,2.89075086,3459.4,3459.1,0.5]
[1762882696545,2.89051676,3459.6,3459.1,0.5]
[1762882696953,0.1827,3459.8,3459.1,0.5]
[1762882697146,0.1827,3459.8,3459.1,3.08136258]
[1762882697332,2.89051305,3459.6,3459.3,0.5]
[1762882697784,2.89062674,3459.5,3459.3,0.5]
[1762882697983,0.4695,3459.6,3459.3,0.5]
[1762882698273,3.36003224,3459.6,3459.2,0.5]
[1762882699167,0.4695,3459.6,3459.2,0.5]
[1762882699375,3.3600112,3459.6,3459.2,0.5]
[1762882699887,2.89049587,3459.7,3459.2,0.5]
[1762882700098,2.89042402,3459.7,3459.2,0.5]
[1762882700370,0.002,3460.1,3459.7,0.5]
[1762882700543,0.4695,3460.0,3459.2,0.5]
[1762882700874,0.4695,3460.0,3459.0,0.001]
[1762882700875,3.47612538,3459.1,3459.0,0.001]
[1762882701168,3.94492538,3459.1,3459.0,0.001]
[1762882702992,0.4025,3459.1,3459.0,0.001]
[1762882703193,0.752,3459.5,3459.0,0.001]
[1762882703512,0.4695,3459.4,3459.0,0.001]
[1762882703650,0.4025,3459.1,3459.0,0.001]
[1762882703851,3.29342538,3459.1,3459.0,0.001]
[1762882704290,0.4025,3459.1,3459.0,0.001]
[1762882704886,0.4695,3459.4,3459.0,0.001]
[1762882704887,0.4715,3459.4,3459.0,0.001]
[1762882705095,0.002,3459.4,3459.0,0.001]
[1762882705389,3.35912538,3459.1,3459.0,0.001]
[1762882705805,3.76292538,3459.1,3459.0,0.001]
[1762882706595,4.51492538,3459.1,3459.0,0.001]
[1762882709604,3.76292538,3459.1,3459.0,0.001]
[1762882709861,4.51392538,3459.1,3459.0,0.001]
[1762882710024,4.51292538,3459.1,3459.0,0.001]
[1762882711402,3.76292538,3459.1,3459.0,0.001]
[1762882711709,0.872,3459.1,3459.0,0.001]
[1762882712008,4.51192538,3459.1,3459.0,0.001]
[1762882713206,3.76292538,3459.1,3459.0,0.001]
[1762882713513,4.51192538,3459.1,3459.0,0.001]
[1762882713732,4.10652538,3459.1,3459.0,0.001]
[1762882714191,4.51092538,3459.1,3459.0,0.001]
[1762882714392,4.77466003,3459.1,3459.0,0.001]
[1762882714592,4.51092538,3459.1,3459.0,0.001]
[1762882715230,4.77469505,3459.1,3459.0,0.001]
[1762882717389,4.02669505,3459.1,3459.0,0.001]
[1762882717594,4.36829505,3459.1,3459.0,0.001]
[1762882718723,0.73136967,3459.1,3459.0,0.001]
[1762882718931,1.00976967,3459.1,3459.0,0.001]
[1762882719096,3.90069505,3459.1,3459.0,0.001]
[1762882720032,1.00976967,3459.1,3459.0,0.001]
[1762882720213,3.90069505,3459.1,3459.0,0.001]
[1762882720593,1.00976967,3459.1,3459.0,0.001]
[1762882721014,0.26376967,3459.1,3459.0,0.001]
[1762882721227,3.15469505,3459.1,3459.0,0.001]
[1762882721421,0.26376967,3459.1,3459.0,0.001]
[1762882721801,3.15469505,3459.1,3459.0,0.001]
[1762882722736,0.26376967,3459.1,3459.0,0.001]
[1762882723239,3.15469505,3459.1,3459.0,0.001]
[1762882723537,0.26376967,3459.1,3459.0,0.001]
[1762882723937,3.15469505,3459.1,3459.0,0.001]
[1762882724501,0.26376967,3459.1,3459.0,0.001]
[1762882724940,0.26376967,3459.1,3459.0,0.4981]
[1762882725145,0.26376967,3459.1,3459.0,0.9682]
[1762882725442,0.26376967,3459.1,3459.0,0.4981]
[1762882725846,0.002,3459.4,3459.0,0.9682]
[1762882726143,0.002,3459.4,3459.3,0.9971]
[1762882726338,0.26650701,3459.4,3459.3,0.9971]
[1762882726542,2.89092538,3459.1,3459.0,0.001]
[1762882726746,3.53113239,3459.1,3459.0,0.001]
[1762882726913,4.76203239,3459.1,3459.0,0.001]
[1762882728935,4.02203239,3459.1,3459.0,0.001]
[1762882729368,4.76203239,3459.1,3459.0,0.001]
[1762882729574,0.64020701,3459.1,3459.0,0.001]
[1762882729773,3.89543239,3459.1,3459.0,0.001]
[1762882730180,0.26450701,3459.1,3459.0,1.4682]
[1762882730677,0.26450701,3459.1,3459.0,0.4981]
[1762882731062,3.53483239,3459.1,3459.0,0.001]
[1762882731372,4.76363239,3459.1,3459.0,0.001]
[1762882731979,4.27383239,3459.1,3459.0,0.001]
[1762882732141,4.76363239,3459.1,3459.0,0.001]
[1762882732484,6.25562412,3459.4,3459.0,0.4981]
[1762882732637,5.11313363,3462.2,3461.3,2.88907251]
[1762882732841,0.4909,3462.6,3461.4,1.11238412]
[1762882733180,2.88814901,3462.5,3461.5,0.5]
[1762882733378,2.888407,3462.2,3461.5,0.5]
[1762882733577,2.88839114,3462.2,3461.5,0.5]
[1762882734079,0.4909,3462.5,3461.5,0.5]
[1762882734080,3.3790482,3462.5,3461.5,0.5]
[1762882734375,2.88859778,3461.9,3461.5,0.5]
[1762882734575,2.88834337,3462.2,3461.5,0.5]
[1762882734778,2.888441,3462.1,3461.5,0.5]
[1762882735276,2.88851237,3462.0,3461.5,0.5]
[1762882735468,2.88848805,3462.1,3461.5,0.5]
[1762882735976,0.4909,3462.4,3461.5,0.5]
[1762882736141,3.37908122,3462.4,3461.6,0.5]
[1762882736341,2.88827361,3462.3,3461.6,0.5]
[1762882736553,2.8883511,3462.2,3461.6,0.5]
[1762882736754,2.88826617,3462.3,3461.6,2.8888346]
[1762882736950,0.4909,3462.4,3461.3,0.76]
[1762882737187,2.88832265,3462.3,3461.8,0.5]
[1762882737381,2.88834296,3462.2,3461.8,0.5]
[1762882737747,2.88844929,3462.1,3461.8,0.5]
[1762882737943,0.4909,3462.4,3461.6,0.5]
[1762882738161,2.88834563,3462.2,3461.6,0.5]
[1762882738344,2.88842866,3462.1,3461.6,0.5]
[1762882738543,0.4909,3462.4,3461.6,0.5]
[1762882738751,2.88835218,3462.2,3461.6,0.5]
[1762882739191,0.4909,3462.4,3461.6,0.5]
[1762882739355,2.88831121,3462.3,3461.6,0.5]
[1762882739910,3.37907675,3462.4,3461.6,0.5]
[1762882740084,2.88837888,3462.2,3461.6,0.5]
[1762882740288,0.6539,3461.7,3459.2,2.8908314]
[1762882740590,2.8894075,3461.0,3460.4,0.5]
[1762882740892,2.8894075,3461.0,3459.9,0.458]
[1762882740893,0.6539,3460.5,3459.8,0.5]
[1762882741091,0.6539,3460.5,3459.5,0.5]
[1762882741294,2.88983932,3460.4,3459.5,0.5]
[1762882741605,2.88983932,3460.4,3459.0,0.0864]
[1762882741606,0.1951,3460.5,3459.9,0.5]
[1762882741754,2.8900591,3460.2,3459.5,1.255]
[1762882741951,0.6721,3460.5,3459.8,0.5]
[1762882742177,2.88992245,3460.4,3459.8,0.5]
[1762882742453,2.88992245,3460.4,3459.5,1.45864385]
[1762882742454,2.88976871,3460.5,3460.1,0.5]
[1762882742684,2.88982599,3460.5,3460.1,0.5]
[1762882742987,2.88982599,3460.5,3459.5,4.34922548]
[1762882742988,2.88983238,3460.5,3459.8,0.5]
[1762882743196,0.754,3460.8,3459.8,0.90940967]
[1762882743365,2.88990118,3460.4,3460.1,0.5]
[1762882743707,0.6721,3460.9,3459.5,2.97594032]
[1762882743708,2.88942908,3460.9,3459.5,2.97594032]
[1762882743909,0.1951,3460.9,3460.5,0.5]
[1762882744110,3.64325928,3461.1,3460.5,0.5]
[1762882744310,1.1337408,3461.5,3460.5,0.5]
[1762882744311,2.88939284,3461.0,3460.5,0.5]
[1762882744619,2.88942331,3460.9,3460.5,0.5]
[1762882744822,2.8890964,3461.3,3460.5,0.5]
[1762882745129,0.754,3461.5,3460.8,0.5]
[1762882745427,2.88922484,3461.2,3460.8,0.5]
[1762882745578,2.88900444,3461.4,3460.8,0.5]
[1762882745779,2.88893316,3461.5,3461.1,0.5]
[1762882745978,0.1951,3461.7,3461.1,0.5]
[1762882746183,2.88898774,3461.5,3461.1,0.5]
[1762882746603,2.8891505,3461.3,3461.1,0.5]